bitfinex-derivatives/quotes_SOLF0:USTF0_20260118
["timestamp","ask_amount","ask_price","bid_price","bid_amount"]
[1768726409358,3.24773496,142.45,142.39,9.46118519]
[1768726410161,3.24773496,142.45,142.4,9.46068519]
[1768726414557,3.24773496,142.47,142.4,11.22853477]
[1768726415866,3.24773496,142.47,142.41,3.33658927]
[1768726421167,3.24773496,142.47,142.41,9.65838927]
[1768726424673,3.24773496,142.47,142.41,6.3218]
[1768726428876,3.24773496,142.47,142.41,9.65838927]
[1768726430975,3.24773496,142.47,142.41,3.33658927]
[1768726433579,5.01558454,142.47,142.41,3.33658927]
[1768726434377,11.33498454,142.47,142.41,3.33658927]
[1768726435879,9.56713496,142.47,142.41,3.33658927]
[1768726436079,11.33498454,142.47,142.41,3.33658927]
[1768726440677,3.24773496,142.47,142.41,3.33658927]
[1768726450191,0.04432716,142.45,142.41,3.33658927]
[1768726457299,0.04432716,142.45,142.41,9.65838927]
[1768726457499,270.26497285,142.49,142.42,3.13805846]
[1768726457699,270.26497285,142.49,142.42,3.1846285]
[1768726458502,3.19712327,142.48,142.42,3.1846285]
[1768726458805,3.19712327,142.48,142.42,9.5060285]
[1768726461309,4.96436255,142.48,142.42,9.5060285]
[1768726477123,3.19712327,142.48,142.42,9.5060285]
[1768726489543,4.96436255,142.48,142.42,9.5060285]
[1768726492543,3.19712327,142.48,142.42,9.5060285]
[1768726497949,3.19712327,142.48,142.43,3.09823897]
[1768726502855,5.02706952,142.47,142.41,3.09823897]
[1768726503846,11.34636952,142.47,142.41,3.09823897]
[1768726504358,0.04446619,142.45,142.41,3.09823897]
[1768726558001,1.76761297,142.44,142.35,3.12765274]
[1768726558294,4.85541746,142.44,142.36,3.12765274]
[1768726559088,11.17611746,142.44,142.36,3.12765274]
[1768726559297,0.04903684,142.41,142.36,3.12765274]
[1768726561890,0.04903684,142.41,142.36,4.89526571]
[1768726562091,0.04903684,142.41,142.37,3.12765274]
[1768726575203,9.40790449,142.46,142.39,3.12765274]
[1768726575401,11.17551746,142.46,142.39,3.12765274]
[1768726576600,11.17551746,142.46,142.41,0.04730385]
[1768726581508,9.40790449,142.46,142.41,3.17495659]
[1768726583213,11.17551746,142.46,142.41,3.17495659]
[1768726585417,11.17559454,142.46,142.41,3.17495659]
[1768726592325,9.40790449,142.46,142.41,3.17495659]
[1768726592526,11.17559454,142.46,142.41,3.17495659]
[1768726593919,8.08779005,142.46,142.41,3.17495659]
[1768726595828,1.76769005,142.46,142.41,3.17495659]
[1768726598923,4.96077546,142.47,142.41,3.17495659]
[1768726603835,3.19308541,142.47,142.41,3.17495659]
[1768726604040,1.76769005,142.45,142.41,3.17495659]
[1768726611942,9.51248541,142.47,142.41,3.17495659]
[1768726612135,1.76769005,142.46,142.41,3.17495659]
[1768726616544,9.51248541,142.47,142.41,3.17495659]
[1768726616744,1.76769005,142.46,142.41,3.17495659]
[1768726619239,9.51248541,142.47,142.41,3.17495659]
[1768726619439,1.76769005,142.46,142.41,3.17495659]
[1768726620038,9.51248541,142.47,142.41,3.17495659]
[1768726620242,1.76769005,142.46,142.41,3.17495659]
[1768726624547,4.96077546,142.47,142.41,3.17495659]
[1768726625647,3.19308541,142.47,142.41,3.17495659]
[1768726631349,4.96077546,142.47,142.41,3.17495659]
[1768726631549,3.19308541,142.47,142.41,3.17495659]
[1768726631749,4.96077546,142.47,142.41,3.17495659]
[1768726633759,3.19308541,142.47,142.41,3.17495659]
[1768726634056,4.96077546,142.47,142.41,3.17495659]
[1768726634249,3.19308541,142.47,142.41,3.17495659]
[1768726634445,4.96077546,142.47,142.41,3.17495659]
[1768726645874,3.19308541,142.47,142.41,3.17495659]
[1768726646062,4.96077546,142.47,142.41,3.17495659]
[1768726646365,3.1168956,142.46,142.41,0.04730385]
[1768726647276,4.88451439,142.46,142.41,0.04730385]
[1768726648669,3.1168956,142.45,142.41,0.04730385]
[1768726650166,4.88451439,142.45,142.41,0.04730385]
[1768726653876,2.37791439,142.45,142.41,0.04730385]
[1768726654077,1.439e-05,142.45,142.41,0.04730385]
[1768726654277,1.76761879,142.47,142.41,3.32962948]
[1768726654978,1.76761879,142.47,142.41,3.28232563]
[1768726655180,1.76761879,142.47,142.43,0.04939526]
[1768726655567,1.879e-05,142.47,142.43,0.04939526]
[1768726655872,1.879e-05,142.47,142.44,6.3202]
[1768726657880,1.879e-05,142.47,142.43,0.04939526]
[1768726658079,3.08251191,142.47,142.43,0.04939526]
[1768726664286,1.879e-05,142.47,142.43,0.04939526]
[1768726666184,1.879e-05,142.47,142.43,6.37039526]
[1768726669685,1.879e-05,142.47,142.44,6.3205]
[1768726678888,1.879e-05,142.47,142.43,3.07830251]
[1768726682896,1.76761879,142.49,142.43,3.07830251]
[1768726683292,3.08249312,142.5,142.44,3.02890725]
[1768726683491,1.76761879,142.49,142.44,3.02890725]
[1768726696513,3.08249312,142.5,142.44,3.02890725]
[1768726700904,8.08531879,142.51,142.44,3.02890725]
[1768726701109,11.37850764,142.51,142.44,3.02890725]
[1768726701817,11.37850764,142.51,142.46,0.04640524]
[1768726702016,6.3181,142.5,142.46,0.04640524]
[1768726711726,9.38554663,142.5,142.46,0.04640524]
[1768726714624,3.06744663,142.49,142.44,3.02890725]
[1768726718425,0.04480635,142.48,142.44,3.02890725]
[1768726739244,6.36370635,142.48,142.44,3.02890725]
[1768726739840,6.3194,142.47,142.42,3.17312391]
[1768726742134,6.3199,142.46,142.42,2.391e-05]
[1768726745939,9.6275871,142.48,142.42,2.391e-05]
[1768726746145,3.26358075,142.47,142.42,2.391e-05]
[1768726749451,3.26358075,142.47,142.38,58.12671161]
[1768726749645,3.26358075,142.47,142.39,1.76669893]
[1768726750850,3.26358075,142.47,142.39,8.08949893]
[1768726751551,3.26358075,142.47,142.4,3.17312391]
[1768726751752,11.34957968,142.47,142.38,17.62263552]
[1768726752048,11.34957968,142.47,142.39,1.76669893]
[1768726752946,3.26358075,142.46,142.39,1.76669893]
[1768726753751,3.26358075,142.46,142.39,2.51229095]
[1768726753948,3.26358075,142.46,142.4,2.51229095]
[1768726754755,9.58338075,142.46,142.35,79.0249538]
[1768726754955,9.58338075,142.46,142.39,1.76669893]
[1768726756558,9.58338075,142.46,142.35,79.0249538]
[1768726756759,9.58338075,142.46,142.4,0.16188354]
[1768726757059,6.3203,142.45,142.4,0.16188354]
[1768726762366,0.05030882,142.44,142.4,0.16188354]
[1768726762764,0.05030882,142.44,142.41,0.04512754]
[1768726803788,4.42014233,142.44,142.38,3.76384927]
[1768726804391,4.42014233,142.44,142.39,1.99636308]
[1768726836826,4.42014233,142.44,142.38,1.76760474]
[1768726841821,4.42014233,142.44,142.37,2.56345582]
[1768726850437,4.42014233,142.44,142.39,0.05217174]
[1768726851837,4.36552599,142.42,142.39,0.05217174]
[1768726862054,4.36552599,142.42,142.36,1.76760474]
[1768726862244,4.36552599,142.42,142.36,4.40269088]
[1768726863348,0.04687092,142.4,142.36,4.40269088]
[1768726868753,4.36552599,142.42,142.36,4.40269088]
[1768726868960,4.36552599,142.42,142.37,0.04503206]
[1768726870259,0.04637434,142.41,142.37,0.04503206]
[1768726874460,4.36552599,142.42,142.38,1.76760474]
[1768726875950,0.04724178,142.41,142.38,1.76760474]
[1768726885264,4.52993812,142.45,142.38,4.37065735]
[1768726885471,5.23290849,142.44,142.4,1.76760474]
[1768726885669,4.52993812,142.45,142.4,1.76760474]
[1768726885869,5.23270627,142.44,142.4,1.76760474]
[1768726886070,4.52993812,142.45,142.4,1.76760474]
[1768726886270,5.23270627,142.44,142.4,1.76760474]
[1768726886465,4.52993812,142.44,142.4,1.76760474]
[1768726886667,4.52993812,142.44,142.41,0.0454676]
[1768726891877,4.52993812,142.46,142.41,6.3672676]
[1768726892177,5.23093258,142.45,142.41,6.3672676]
[1768726892372,4.52993812,142.45,142.41,6.3672676]
[1768726895277,4.52993812,142.45,142.42,6.3214]
[1768726895987,4.52993812,142.45,142.42,8.08869331]
[1768726897886,4.74555842,142.48,142.42,8.08869331]
[1768726898084,9.97260613,142.47,142.42,8.08869331]
[1768726898387,5.22704771,142.46,142.42,8.08869331]
[1768726898781,5.22704771,142.46,142.43,0.04624515]
[1768726900684,9.97260613,142.46,142.43,0.04624515]
[1768726900885,4.74555842,142.46,142.43,0.04624515]
[1768726904588,4.79794667,142.46,142.42,6.3214]
[1768726904993,4.79794667,142.46,142.38,4.39337761]
[1768726905589,4.74555842,142.46,142.38,4.39337761]
[1768726906287,4.74555842,142.44,142.38,4.39337761]
[1768726906589,4.74555842,142.44,142.38,2.6260843]
[1768726910391,4.74555842,142.44,142.37,1.76729331]
[1768726910984,4.74555842,142.44,142.39,1.76729331]
[1768726912695,4.68089146,142.48,142.41,6.20216165]
[1768726912895,5.22287165,142.47,142.42,4.43486834]
[1768726913099,4.68089146,142.48,142.42,4.43486834]
[1768726913291,5.2226715,142.47,142.42,4.43486834]
[1768726913490,4.68089146,142.48,142.42,4.43486834]
[1768726913798,5.2222077,142.47,142.42,4.43486834]
[1768726913994,4.68089146,142.48,142.42,4.43486834]
[1768726914195,5.2222077,142.47,142.42,4.43486834]
[1768726914497,4.68089146,142.48,142.42,4.43486834]
[1768726914697,5.22181703,142.47,142.42,4.43486834]
[1768726914887,4.68089146,142.48,142.43,6.20216165]
[1768726915694,4.68089146,142.48,142.43,4.43486834]
[1768726947822,0.04630412,142.47,142.43,4.43486834]
[1768726959431,0.04630412,142.47,142.43,6.20153162]
[1768726962834,0.04630412,142.47,142.44,4.59751547]
[1768726998277,4.76144596,142.5,142.44,4.59751547]
[1768726998674,4.76144596,142.5,142.44,4.64329027]
[1768727003973,1.76666328,142.51,142.44,4.64329027]
[1768727004183,5.2579389,142.5,142.44,4.64329027]
[1768727004379,6.31983352,142.51,142.44,4.64329027]
[1768727004571,5.25757158,142.5,142.44,4.64329027]
[1768727004770,6.31983352,142.51,142.44,4.64329027]
[1768727005069,5.25757536,142.5,142.44,4.64329027]
[1768727005267,6.31983352,142.51,142.44,4.64329027]
[1768727005475,5.25731655,142.5,142.44,4.64329027]
[1768727005671,6.31983352,142.51,142.44,4.64329027]
[1768727005872,5.25731655,142.5,142.44,4.64329027]
[1768727006078,6.31983352,142.51,142.44,4.64329027]
[1768727006379,5.25731655,142.5,142.44,4.64329027]
[1768727006571,6.31983352,142.51,142.44,4.64329027]
[1768727006774,5.25710412,142.5,142.44,4.64329027]
[1768727006967,6.31983352,142.51,142.44,4.64329027]
[1768727007178,5.25710412,142.5,142.44,4.64329027]
[1768727007376,6.31983352,142.51,142.44,4.64329027]
[1768727007576,5.25692036,142.5,142.44,4.64329027]
[1768727007778,6.31983352,142.51,142.44,4.64329027]
[1768727007979,5.25692036,142.5,142.44,4.64329027]
[1768727008179,6.31983352,142.51,142.44,4.64329027]
[1768727008374,5.25675635,142.5,142.44,4.64329027]
[1768727008575,6.31983352,142.51,142.44,4.64329027]
[1768727008778,5.25675638,142.5,142.44,4.64329027]
[1768727008981,6.31983352,142.51,142.44,4.64329027]
[1768727009179,5.25675638,142.5,142.44,4.64329027]
[1768727009381,6.31983352,142.51,142.44,4.64329027]
[1768727009577,5.25661477,142.5,142.44,4.64329027]
[1768727009770,6.31983352,142.51,142.44,4.64329027]
[1768727010069,5.25661477,142.5,142.44,4.64329027]
[1768727010270,6.31983352,142.51,142.44,4.64329027]
[1768727010573,5.25649365,142.5,142.44,4.64329027]
[1768727010773,6.31983352,142.51,142.44,4.64329027]
[1768727010976,5.25649365,142.5,142.44,4.64329027]
[1768727011177,6.31983352,142.51,142.44,4.64329027]
[1768727011376,5.25639158,142.5,142.44,4.64329027]
[1768727011576,6.31983352,142.51,142.44,4.64329027]
[1768727011778,5.25639158,142.5,142.44,4.64329027]
[1768727011979,6.31983352,142.51,142.44,4.64329027]
[1768727012275,5.25639158,142.5,142.44,4.64329027]
[1768727012471,6.31983352,142.51,142.44,4.64329027]
[1768727012676,5.25630743,142.5,142.44,4.64329027]
[1768727012875,6.31983352,142.51,142.44,4.64329027]
[1768727013076,5.25630743,142.5,142.44,4.64329027]
[1768727013380,6.31956619,142.51,142.44,4.64329027]
[1768727013580,5.25624034,142.5,142.44,4.64329027]
[1768727013879,6.31956619,142.51,142.44,4.64329027]
[1768727014080,5.25624034,142.5,142.44,4.64329027]
[1768727014282,6.31956619,142.51,142.44,4.64329027]
[1768727014482,5.25616999,142.5,142.44,4.64329027]
[1768727014687,6.31956619,142.51,142.44,4.64329027]
[1768727014883,5.25616999,142.5,142.44,4.64329027]
[1768727015084,6.31956619,142.51,142.44,4.64329027]
[1768727015285,5.25616999,142.5,142.44,4.64329027]
[1768727015484,6.31956619,142.51,142.44,4.64329027]
[1768727015684,5.2561343,142.5,142.44,4.64329027]
[1768727015886,6.31956619,142.51,142.44,4.64329027]
[1768727016184,5.256042,142.5,142.44,4.64329027]
[1768727016380,6.31956619,142.51,142.44,4.64329027]
[1768727016582,5.25596532,142.5,142.44,4.64329027]
[1768727016781,6.31956619,142.51,142.44,4.64329027]
[1768727016976,5.25596532,142.5,142.44,4.64329027]
[1768727017280,6.31956619,142.51,142.44,4.64329027]
[1768727017684,5.25590926,142.5,142.44,4.64329027]
[1768727017886,6.31956619,142.51,142.44,4.64329027]
[1768727018486,5.25573602,142.5,142.44,4.64329027]
[1768727018686,6.31956619,142.51,142.44,4.64329027]
[1768727019789,5.25566659,142.5,142.44,4.64329027]
[1768727019985,6.31956619,142.51,142.44,4.64329027]
[1768727020188,5.25566659,142.5,142.44,4.64329027]
[1768727020485,6.31956619,142.51,142.44,4.64329027]
[1768727020686,5.25567647,142.5,142.44,4.64329027]
[1768727020877,6.31956619,142.51,142.44,4.64329027]
[1768727021084,5.25567647,142.5,142.44,4.64329027]
[1768727021379,6.31956619,142.51,142.44,4.64329027]
[1768727021581,5.25570521,142.5,142.44,4.64329027]
[1768727021781,6.31956619,142.51,142.44,4.64329027]
[1768727022092,1.76639595,142.53,142.46,4.42861432]
[1768727022590,6.4944503,142.53,142.46,4.42861432]
[1768727023088,6.4944503,142.53,142.48,0.04689412]
[1768727026491,4.72805435,142.52,142.48,0.04689412]
[1768727028694,4.72805435,142.52,142.44,4.42861432]
[1768727035797,6.08686628,142.51,142.44,4.42861432]
[1768727036102,4.32047033,142.5,142.44,4.42861432]
[1768727064032,12.62808555,142.52,142.44,4.42861432]
[1768727064236,9.80052996,142.51,142.44,4.42861432]
[1768727064530,5.25594036,142.5,142.44,4.42861432]
[1768727064733,4.5445896,142.51,142.44,4.42861432]
[1768727064925,9.80048653,142.5,142.44,4.42861432]
[1768727065121,4.5445896,142.5,142.44,4.42861432]
[1768727083152,0.04920379,142.48,142.44,4.42861432]
[1768727086548,0.04920379,142.48,142.45,0.04437748]
[1768727092659,0.04920379,142.48,142.42,4.55871143]
[1768727092660,4.62132481,142.48,142.42,4.55871143]
[1768727101465,4.62132481,142.48,142.43,6.32515496]
[1768727101761,4.57212102,142.5,142.43,6.32515496]
[1768727102064,4.57212102,142.5,142.44,4.55871143]
[1768727116978,4.57212102,142.5,142.44,6.32515496]
[1768727122783,4.57212102,142.5,142.44,4.55871143]
[1768727156118,5.2676177,142.49,142.44,4.55871143]
[1768727156418,4.57212102,142.5,142.44,4.55871143]
[1768727156614,5.26762143,142.49,142.44,4.55871143]
[1768727156814,4.57212102,142.5,142.44,4.55871143]
[1768727157010,5.26762143,142.49,142.44,4.55871143]
[1768727157212,4.57212102,142.5,142.44,4.55871143]
[1768727157412,5.26762568,142.49,142.44,4.55871143]
[1768727157612,4.57212102,142.5,142.44,4.55871143]
[1768727157808,5.26762568,142.49,142.44,4.55871143]
[1768727158111,4.57212102,142.5,142.44,4.55871143]
[1768727158313,5.26762568,142.49,142.44,4.55871143]
[1768727158509,4.57212102,142.5,142.44,4.55871143]
[1768727158711,5.26763046,142.49,142.44,4.55871143]
[1768727158915,4.57212102,142.5,142.44,4.55871143]
[1768727159117,5.2676305,142.49,142.44,4.55871143]
[1768727159317,4.57212102,142.5,142.44,4.55871143]
[1768727159513,5.26763918,142.49,142.44,4.55871143]
[1768727159718,4.57212102,142.5,142.44,4.55871143]
[1768727160011,5.26763918,142.49,142.44,4.55871143]
[1768727160211,4.57212102,142.5,142.44,4.55871143]
[1768727160415,5.26764654,142.49,142.44,4.55871143]
[1768727160620,4.57212102,142.5,142.44,4.55871143]
[1768727160821,5.26764654,142.49,142.44,4.55871143]
[1768727161012,4.57212102,142.5,142.44,4.55871143]
[1768727161215,5.26764654,142.49,142.44,4.55871143]
[1768727161418,4.57212102,142.5,142.44,4.55871143]
[1768727161618,5.26765738,142.49,142.44,4.55871143]
[1768727161827,4.57212102,142.5,142.44,4.55871143]
[1768727162025,5.26765738,142.49,142.44,4.55871143]
[1768727162225,4.57212102,142.5,142.44,4.55871143]
[1768727162420,5.26766955,142.49,142.44,4.55871143]
[1768727162627,4.57212102,142.5,142.44,4.55871143]
[1768727162827,5.26766955,142.49,142.44,4.55871143]
[1768727163027,4.57212102,142.5,142.44,4.55871143]
[1768727163331,5.26766955,142.49,142.44,4.55871143]
[1768727163533,4.57212102,142.5,142.44,4.55871143]
[1768727163723,5.26768329,142.49,142.44,4.55871143]
[1768727163919,4.57212102,142.5,142.44,4.55871143]
[1768727164232,5.26768329,142.49,142.44,4.55871143]
[1768727164426,4.57212102,142.5,142.44,4.55871143]
[1768727164724,5.26769891,142.49,142.44,4.55871143]
[1768727164932,4.57212102,142.5,142.44,4.55871143]
[1768727165227,5.26769891,142.49,142.44,4.55871143]
[1768727165427,4.57212102,142.5,142.44,4.55871143]
[1768727165629,5.26771691,142.49,142.44,4.55871143]
[1768727165829,4.57212102,142.5,142.44,4.55871143]
[1768727174938,5.70607841,142.52,142.44,4.55871143]
[1768727175237,5.26499533,142.51,142.44,4.55871143]
[1768727175436,5.26499533,142.5,142.44,4.55871143]
[1768727175739,5.70607841,142.52,142.44,4.55871143]
[1768727175936,5.26470598,142.51,142.44,4.55871143]
[1768727176235,5.26470598,142.5,142.44,4.55871143]
[1768727176431,5.70607841,142.52,142.44,4.55871143]
[1768727176634,5.26445877,142.51,142.44,4.55871143]
[1768727176834,5.26445877,142.5,142.44,4.55871143]
[1768727177131,3.93970184,142.52,142.46,3.99384387]
[1768727177337,5.25707276,142.51,142.46,3.99384387]
[1768727177637,3.93970184,142.52,142.46,3.99384387]
[1768727177833,5.25603237,142.51,142.46,3.99384387]
[1768727178034,3.93970184,142.52,142.46,3.99384387]
[1768727179940,3.93970184,142.52,142.48,6.3188]
[1768727182137,5.70607841,142.52,142.48,6.3188]
[1768727185240,3.93970184,142.52,142.48,6.3188]
[1768727185447,5.70607841,142.52,142.48,6.3188]
[1768727186945,5.70607841,142.52,142.46,3.99384387]
[1768727187938,3.93970184,142.52,142.46,3.99384387]
[1768727188145,5.70607841,142.52,142.46,3.99384387]
[1768727195348,5.70568694,142.52,142.46,3.99384387]
[1768727203161,3.93970184,142.52,142.46,3.99384387]
[1768727203364,5.70568694,142.52,142.46,3.99384387]
[1768727204561,3.93970184,142.52,142.46,3.99384387]
[1768727204762,5.70568694,142.52,142.46,3.99384387]
[1768727214170,3.93970184,142.52,142.46,3.99384387]
[1768727214373,1.7659851,142.51,142.46,3.99384387]
[1768727224880,5.82541648,142.51,142.46,3.99384387]
[1768727225782,5.82541648,142.51,142.41,3.82319478]
[1768727225980,5.82541648,142.51,142.42,1.7659851]
[1768727226580,5.82541648,142.51,142.43,3.82319478]
[1768727227382,4.05943138,142.5,142.43,3.82319478]
[1768727228887,4.05943138,142.48,142.43,3.82319478]
[1768727229788,0.05353296,142.47,142.44,0.04770241]
[1768727234891,4.11296434,142.47,142.44,0.04770241]
[1768727235192,4.11296434,142.47,142.41,3.82319478]
[1768727235583,5.82541648,142.46,142.41,3.82319478]
[1768727235886,4.05943138,142.45,142.38,3.82319478]
[1768727236892,0.04541445,142.43,142.38,3.82319478]
[1768727238185,0.04541445,142.43,142.38,5.58917988]
[1768727238590,0.04541445,142.43,142.39,3.82319478]
[1768727239889,4.10484583,142.43,142.37,3.82319478]
[1768727240590,4.05943138,142.43,142.37,3.82319478]
[1768727241100,0.0461851,142.41,142.37,3.82319478]
[1768727262613,3.56693635,142.41,142.34,3.65524445]
[1768727262911,5.28911978,142.4,142.34,3.65524445]
[1768727263614,0.04553166,142.38,142.34,3.65524445]
[1768727266719,3.56628291,142.38,142.32,3.65524445]
[1768727271422,3.52075125,142.37,142.32,3.65524445]
[1768727271815,3.52075125,142.37,142.3,3.65524445]
[1768727272523,3.58616792,142.35,142.3,3.65524445]
[1768727272722,3.63613248,142.35,142.3,3.65524445]
[1768727273816,0.04996456,142.35,142.32,3.60495592]
[1768727274123,3.58616792,142.39,142.25,114.37240219]
[1768727274124,3.58616792,142.39,142.34,3.60495592]
[1768727280927,8.09076853,142.41,142.34,3.60495592]
[1768727281129,5.35453645,142.41,142.34,3.60495592]
[1768727281530,5.35453645,142.41,142.35,3.60495592]
[1768727281729,3.58616792,142.41,142.35,3.60495592]
[1768727284130,5.35453645,142.41,142.35,3.60495592]
[1768727284526,3.58616792,142.41,142.35,3.60495592]
[1768727284723,1.76836853,142.42,142.35,3.60495592]
[1768727284926,5.35453645,142.42,142.35,3.60495592]
[1768727285525,1.76836853,142.42,142.35,3.60495592]
[1768727291436,3.58616792,142.43,142.35,3.60495592]
[1768727295540,3.58616792,142.43,142.36,3.60495592]
[1768727296944,1.76836853,142.44,142.36,3.60495592]
[1768727297134,5.35453645,142.46,142.38,3.60495592]
[1768727305750,1.76836853,142.47,142.38,3.60495592]
[1768727305954,1.76836853,142.47,142.4,3.39397336]
[1768727306956,5.34599014,142.47,142.4,3.39397336]
[1768727307251,3.57762161,142.47,142.4,3.39397336]
[1768727307554,5.34599014,142.47,142.4,3.39397336]
[1768727309755,5.34599014,142.47,142.43,6.321]
[1768727311056,5.34599014,142.47,142.4,3.39397336]
[1768727317263,5.34497869,142.47,142.4,3.39397336]
[1768727321768,5.34497869,142.47,142.44,6.3205]
[1768727323769,5.34497869,142.47,142.45,6.3201]
[1768727323972,5.34497869,142.47,142.4,3.39397336]
[1768727324770,5.34497869,142.47,142.44,6.3204]
[1768727325470,5.34497869,142.47,142.4,3.39397336]
[1768727326363,3.31878783,142.46,142.4,3.39397336]
[1768727326671,1.76735708,142.45,142.4,3.39397336]
[1768727328774,3.31878783,142.46,142.4,3.39397336]
[1768727328967,1.76735708,142.44,142.4,3.39397336]
[1768727336876,5.08614491,142.46,142.4,3.39397336]
[1768727338472,3.31878783,142.46,142.4,3.39397336]
[1768727338673,5.08614491,142.46,142.4,3.39397336]
[1768727341980,3.31878783,142.46,142.4,3.39397336]
[1768727342479,5.08051895,142.48,142.4,3.39397336]
[1768727342779,5.30289137,142.47,142.4,3.39397336]
[1768727342968,5.08051895,142.48,142.4,3.39397336]
[1768727343175,5.30284471,142.47,142.4,3.39397336]
[1768727343375,5.08051895,142.48,142.4,3.39397336]
[1768727343581,5.30308443,142.47,142.4,3.39397336]
[1768727343780,5.08051895,142.48,142.4,3.39397336]
[1768727343974,5.30308673,142.47,142.4,3.39397336]
[1768727344175,3.31316187,142.47,142.4,3.39397336]
[1768727347476,1.76735708,142.48,142.41,3.24076425]
[1768727347873,3.31316187,142.49,142.41,3.24076425]
[1768727348077,3.31316187,142.49,142.42,1.76735708]
[1768727348272,3.31316187,142.49,142.43,3.24076425]
[1768727375915,3.31316187,142.49,142.44,6.3205]
[1768727376917,3.11012977,142.51,142.46,3.23228506]
[1768727377114,3.11012977,142.52,142.46,3.23228506]
[1768727378118,3.11012977,142.52,142.47,3.23228506]
[1768727379819,3.11012977,142.52,142.48,6.3187]
[1768727380022,3.11012977,142.52,142.47,3.23228506]
[1768727380823,4.87604595,142.54,142.48,3.23228506]
[1768727381617,3.11012977,142.54,142.48,3.23228506]
[1768727386029,3.11012977,142.54,142.48,9.55108506]
[1768727388323,3.11012977,142.54,142.49,6.3183]
[1768727388525,3.11012977,142.54,142.49,9.55058506]
[1768727395527,1.76591618,142.55,142.5,6.3178]
[1768727396234,5.10966226,142.55,142.5,6.3178]
[1768727403142,3.34374608,142.55,142.5,6.3178]
[1768727403343,1.76591618,142.54,142.5,6.3178]
[1768727403538,20.95223679,142.57,142.51,3.12055116]
[1768727403744,1.76591618,142.55,142.51,3.12055116]
[1768727404238,5.10966226,142.56,142.51,3.12055116]
[1768727404432,17.60849071,142.57,142.52,3.12055116]
[1768727405738,17.60849071,142.57,142.52,9.43725116]
[1768727406133,20.95223679,142.57,142.52,9.43725116]
[1768727406334,1.76591618,142.56,142.52,9.43725116]
[1768727406947,5.10966226,142.56,142.5,9.43815116]
[1768727407139,3.34374608,142.56,142.5,9.43815116]
[1768727407338,1.76591618,142.55,142.5,9.43815116]
[1768727408548,5.10966226,142.56,142.5,9.43815116]
[1768727408948,17.60849071,142.57,142.51,3.12055116]
[1768727409250,19.37440689,142.57,142.51,3.12055116]
[1768727414758,22.71815297,142.57,142.51,3.12055116]
[1768727415553,1.76591618,142.55,142.49,3.12055116]
[1768727415754,3.34374608,142.55,142.49,3.12055116]
[1768727415955,5.10966226,142.55,142.49,3.12055116]
[1768727426760,3.34374608,142.55,142.49,3.12055116]
[1768727426972,5.10966226,142.55,142.49,3.12055116]
[1768727429274,5.26053917,142.54,142.49,3.12055116]
[1768727429476,5.10966226,142.55,142.49,3.12055116]
[1768727429780,5.26053917,142.54,142.49,3.12055116]
[1768727429971,5.10966226,142.55,142.49,3.12055116]
[1768727430276,5.26053917,142.54,142.49,3.12055116]
[1768727430582,5.10966226,142.55,142.49,3.12055116]
[1768727430875,5.26098703,142.54,142.49,3.12055116]
[1768727431080,5.10966226,142.55,142.49,3.12055116]
[1768727431374,5.26110707,142.54,142.49,3.12055116]
[1768727431676,5.10966226,142.55,142.49,3.12055116]
[1768727431879,5.26149319,142.54,142.49,3.12055116]
[1768727432077,5.10966226,142.55,142.49,3.12055116]
[1768727432274,5.26160801,142.54,142.49,3.12055116]
[1768727432581,5.10966226,142.55,142.49,3.12055116]
[1768727432785,5.26205246,142.54,142.49,3.12055116]
[1768727433077,5.10966226,142.55,142.49,3.12055116]
[1768727433282,5.26216092,142.54,142.49,3.12055116]
[1768727433470,5.10966226,142.55,142.49,3.12055116]
[1768727433670,5.26267486,142.54,142.49,3.12055116]
[1768727433871,5.10966226,142.55,142.49,3.12055116]
[1768727434072,5.26267486,142.54,142.49,3.12055116]
[1768727434280,5.10966226,142.55,142.49,3.12055116]
[1768727434580,5.26291006,142.54,142.49,3.12055116]
[1768727434781,5.10966226,142.55,142.49,3.12055116]
[1768727434980,5.26291006,142.54,142.49,3.12055116]
[1768727435281,5.10966226,142.55,142.49,3.12055116]
[1768727435478,5.26317295,142.54,142.49,3.12055116]
[1768727435680,5.10966226,142.55,142.49,3.12055116]
[1768727435874,5.26317295,142.54,142.49,3.12055116]
[1768727436075,5.10966226,142.55,142.49,3.12055116]
[1768727436271,5.26326649,142.54,142.49,3.12055116]
[1768727436476,5.10966226,142.55,142.49,3.12055116]
[1768727436677,5.26345562,142.54,142.49,3.12055116]
[1768727436976,5.10966226,142.55,142.49,3.12055116]
[1768727437174,5.26345562,142.54,142.49,3.12055116]
[1768727437373,5.10966226,142.55,142.49,3.12055116]
[1768727437682,5.26375964,142.54,142.49,3.12055116]
[1768727437887,5.10966226,142.55,142.49,3.12055116]
[1768727438083,5.26375964,142.54,142.49,3.12055116]
[1768727438285,5.10966226,142.55,142.49,3.12055116]
[1768727438583,5.26408762,142.54,142.49,3.12055116]
[1768727438785,5.10966226,142.55,142.49,3.12055116]
[1768727438986,5.26408762,142.54,142.49,3.12055116]
[1768727439187,5.10966226,142.55,142.49,3.12055116]
[1768727439387,5.26444288,142.54,142.49,3.12055116]
[1768727439579,5.10917134,142.55,142.49,3.12055116]
[1768727439775,5.26444288,142.54,142.49,3.12055116]